fUSD/lending_fUSD_20250606
["ID","MTS","AMOUNT","RATE_DAILY","PERIOD"]
[364790811,1749241907099,-1012.85,0.00029698,5]
[364790812,1749241907108,-482.38,0.00029698,5]
[364790813,1749241907118,-713.99,0.00029698,5]
[364790814,1749241907127,-480.0,0.00029698,5]
[364790815,1749241907137,-549.54,0.00029698,5]
[364790816,1749241907147,-891.22,0.00029698,5]
[364790817,1749241907157,-1010.55,0.00029698,5]
[364790818,1749241907167,-480.0,0.00029698,5]
[364790819,1749241907176,-580.5,0.00029698,5]
[364790820,1749241907186,-464.29412403,0.00029698,5]
[364790821,1749241907195,-480.0,0.00029698,5]
[364790822,1749241907205,-480.0,0.00029698,5]
[364790823,1749241907214,-787.11,0.00029698,5]
[364790824,1749241907223,-801.53,0.00029698,5]
[364790825,1749241907233,-547.92,0.00029698,5]
[364790826,1749241907242,-788.62,0.00029698,5]
[364790827,1749241907252,-823.95,0.00029698,5]
[364790828,1749241907262,-540.55,0.00029698,5]
[364790829,1749241907271,-1667.28,0.00029698,5]
[364790830,1749241907281,-708.27,0.00029698,5]
[364790831,1749241907290,-815.35,0.00029698,5]
[364790832,1749241907299,-1322.04,0.00029698,5]
[364790833,1749241907309,-788.51,0.00029698,5]
[364790834,1749241907319,-480.0,0.00029698,5]
[364790835,1749241907328,-1588.19,0.00029698,5]
[364790836,1749241907339,-894.23,0.00029698,5]
[364790837,1749241907349,-627.73,0.00029698,5]
[364790838,1749241907359,-493.66,0.00029698,5]
[364790839,1749241907368,-907.31,0.00029698,5]
[364790840,1749241907379,-543.94,0.00029698,5]
[364790841,1749241907388,-907.9,0.00029698,5]
[364790842,1749241907398,-612.39,0.00029698,5]
[364790843,1749241907407,-908.3,0.00029698,5]
[364790844,1749241907417,-156.813701,0.00029698,5]
[364790845,1749241907427,-480.0,0.00029698,5]
[364790846,1749241907436,-3267.11,0.00029698,5]
[364790847,1749241907446,-778.17,0.00029698,5]
[364790848,1749241907456,-948.36,0.00029698,5]
[364790849,1749241907465,-1438.85,0.00029698,5]
[364790850,1749241907475,-542.99,0.00029698,5]
[364790851,1749241907485,-555.32,0.00029698,5]
[364790852,1749241907495,-150.270793,0.00029698,5]
[364790853,1749241907504,-1535.87,0.00029698,5]
[364790854,1749241907513,-1296.25,0.00029698,5]
[364790855,1749241907523,-516.58,0.00029698,5]
[364790856,1749241907533,-492.59,0.00029698,5]
[364790857,1749241907543,-1575.78,0.00029698,5]
[364790858,1749241907555,-538.08,0.00029698,5]
[364790859,1749241907566,-970.72,0.00029698,5]
[364790860,1749241907577,-2734.62,0.00029698,5]
[364790861,1749241907589,-1837.71,0.00029698,5]
[364790862,1749241907599,-480.0,0.00029698,5]
[364790863,1749241907608,-2758.24,0.00029698,5]
[364790864,1749241907617,-4609.26,0.00029698,5]
[364790865,1749241907627,-480.0,0.00029698,5]
[364790866,1749241907638,-819.99,0.00029698,5]
[364790867,1749241907647,-1046.07,0.00029698,5]
[364790868,1749241907656,-480.0,0.00029698,5]
[364790869,1749241907664,-3979.76,0.00029698,5]
[364790870,1749241907673,-902.21,0.00029698,5]
[364790871,1749241907682,-480.0,0.00029698,5]
[364790872,1749241907691,-480.0,0.00029698,5]
[364790873,1749241907700,-599.88,0.00029698,5]
[364790874,1749241907710,-765.24,0.00029698,5]
[364790875,1749241907719,-57460.09,0.00029698,5]
[364790876,1749241907730,-703.27,0.00029698,5]
[364790877,1749241907742,-4676.37,0.00029698,5]
[364790878,1749241907751,-2938.32,0.00029698,5]
[364790879,1749241907761,-1379.45,0.00029698,5]
[364790880,1749241907771,-7478.95,0.00029698,5]
[364790881,1749241907780,-755.4,0.00029698,5]
[364790882,1749241907792,-607.62,0.00029698,5]
[364790883,1749241907801,-1091.95,0.00029698,5]
[364790884,1749241907810,-3373.75,0.00029698,5]
[364790885,1749241907820,-1260.18,0.00029698,5]
[364790886,1749241907831,-949.92,0.00029698,5]
[364790887,1749241907841,-9118.0,0.00029698,5]
[364790888,1749241907850,-520.51,0.00029698,5]
[364790889,1749241907860,-480.0,0.00029698,5]
[364790890,1749241907871,-597.4,0.00029698,5]
[364790891,1749241907881,-1500.48,0.00029698,5]
[364790892,1749241907891,-1073.19,0.00029698,5]
[364790893,1749241907900,-2617.35,0.00029698,5]
[364790894,1749241907909,-1091.83,0.00029698,5]
[364790895,1749241907920,-1000.0,0.00029698,2]
[364790896,1749241907930,-480.0,0.00029698,5]
[364790897,1749241907939,-2954.48,0.00029698,5]
[364790898,1749241907949,-676.46,0.00029698,5]
[364790899,1749241907959,-1100.1,0.00029698,5]
[364790900,1749241907968,-774.3,0.00029698,5]
[364790901,1749241907978,-909.08,0.00029698,5]
[364790902,1749241907987,-771.25,0.00029698,5]
[364790903,1749241907998,-1341.13,0.00029698,5]
[364790904,1749241908007,-1674.49,0.00029698,5]
[364790905,1749241908017,-434.99230537,0.00029698,5]
[364790906,1749241908026,-2363.43,0.00029698,5]
[364790907,1749241908035,-1778.5,0.00029698,5]
[364790908,1749241908045,-2094.52,0.00029698,5]
[364790909,1749241908054,-410.60041128,0.00029698,5]
[364790910,1749241908064,-2998.55,0.00029698,5]
[364790911,1749241908074,-837.35,0.00029698,5]
[364790912,1749241908083,-1324.98,0.00029698,5]
[364790913,1749241908094,-822.69,0.00029698,5]
[364790914,1749241908104,-4354.28,0.00029698,5]
[364790915,1749241908113,-1172.56,0.00029698,5]
[364790916,1749241908122,-10833.54,0.00029698,5]
[364790917,1749241908131,-2910.79,0.00029698,5]
[364790918,1749241908141,-1425.98,0.00029698,5]
[364790919,1749241908151,-1161.29,0.00029698,5]
[364790920,1749241908160,-701.08,0.00029698,5]
[364790921,1749241908170,-480.0,0.00029698,5]
[364790922,1749241908179,-725.11,0.00029698,5]
[364790923,1749241908189,-891.78,0.00029698,5]
[364790924,1749241908198,-622.3,0.00029698,5]
[364790925,1749241908208,-480.0,0.00029698,5]
[364790926,1749241908218,-1363.03,0.00029698,5]
[364790927,1749241908228,-2822.75,0.00029698,5]
[364790928,1749241908237,-3135.14,0.00029698,5]
[364790929,1749241908247,-1180.93,0.00029698,5]
[364790930,1749241908258,-931.09,0.00029698,5]
[364790931,1749241908268,-480.0,0.00029698,5]
[364790932,1749241908277,-1414.51,0.00029698,5]
[364790933,1749241908287,-1155.88,0.00029698,5]
[364790934,1749241908297,-4001.96,0.00029698,5]
[364790935,1749241908307,-552.73,0.00029698,5]
[364790936,1749241908316,-632.88,0.00029698,5]
[364790937,1749241908327,-1526.89,0.00029698,5]
[364790938,1749241908337,-1010.46,0.00029698,5]
[364790939,1749241908347,-1132.61,0.00029698,5]
[364790940,1749241908356,-533.37,0.00029698,5]
[364790941,1749241908366,-1110.02,0.00029698,5]
[364790942,1749241908376,-4560.52,0.00029698,5]
[364790943,1749241908386,-480.0,0.00029698,5]
[364790944,1749241908396,-593.39,0.00029698,5]
[364790945,1749241908406,-1741.06,0.00029698,5]
[364790946,1749241908415,-480.0,0.00029698,5]
[364790947,1749241908425,-480.0,0.00029698,5]
[364790948,1749241908434,-1207.6,0.00029698,5]
[364790949,1749241908443,-480.0,0.00029698,5]
[364790950,1749241908453,-526.84,0.00029698,5]
[364790951,1749241908462,-625.4,0.00029698,5]
[364790952,1749241908473,-776.39,0.00029698,5]
[364790953,1749241908482,-1627.41,0.00029698,5]
[364790954,1749241908492,-959.5,0.00029698,5]
[364790955,1749241908502,-3166.58,0.00029698,5]
[364790956,1749241908511,-480.0,0.00029698,5]
[364790957,1749241908521,-1176.26,0.00029698,5]
[364790958,1749241908530,-1451.66,0.00029698,5]
[364790959,1749241908540,-480.0,0.00029698,5]
[364790960,1749241908549,-7319.26,0.00029698,5]
[364790961,1749241908559,-15228.1,0.00029698,5]
[364790962,1749241908569,-480.0,0.00029698,5]
[364790963,1749241908579,-3041.7,0.00029698,5]
[364790964,1749241908589,-649.3,0.00029698,5]
[364790965,1749241908599,-480.0,0.00029698,5]
[364790966,1749241908608,-585.28,0.00029698,5]
[364790967,1749241908618,-11478.06,0.00029698,5]
[364790968,1749241908627,-1727.03,0.00029698,5]
[364790969,1749241908637,-1130.77,0.00029698,5]
[364790970,1749241908646,-7297.24,0.00029698,5]
[364790971,1749241908655,-480.0,0.00029698,5]
[364790972,1749241908665,-1673.57,0.00029698,5]
[364790973,1749241908674,-567.72813704,0.00029698,5]
[364790974,1749241908683,-1724.44,0.00029698,5]
[364790975,1749241908876,-155.22438,0.00029698,5]
[364790976,1749241908887,-605.57,0.00029698,5]
[364790977,1749241908896,-2022.54,0.00029698,5]
[364790978,1749241908906,-1496.76,0.00029698,5]
[364790979,1749241908917,-616.43,0.00029698,5]
[364790980,1749241908926,-480.0,0.00029698,5]
[364790981,1749241908936,-1644.54,0.00029698,5]
[364790982,1749241908945,-3349.68,0.00029698,5]
[364790983,1749241908955,-624.52,0.00029698,5]
[364790984,1749241908964,-584.83,0.00029698,5]
[364790985,1749241908974,-1651.89,0.00029698,5]
[364790986,1749241908983,-869.35,0.00029698,5]
[364790987,1749241908992,-567.05,0.00029698,5]
[364790988,1749241909002,-718.31,0.00029698,5]
[364790989,1749241909011,-360.792683,0.00029698,5]
[364790990,1749241909022,-593.22,0.00029698,5]
[364790991,1749241909031,-724.33,0.00029698,5]
[364790992,1749241909041,-1529.35,0.00029698,5]
[364790993,1749241909050,-586.21,0.00029698,5]
[364790994,1749241909059,-618.5,0.00029698,5]
[364790995,1749241909068,-645.12,0.00029698,5]
[364790996,1749241909078,-1029.88,0.00029698,5]
[364790997,1749241909088,-856.04,0.00029698,5]
[364790998,1749241909097,-1316.83,0.00029698,5]
[364790999,1749241909107,-1219.25,0.00029698,5]
[364791000,1749241909116,-937.26,0.00029698,5]
[364791001,1749241909126,-2376.4,0.00029698,5]
[364791002,1749241909135,-480.0,0.00029698,2]
[364791003,1749241909145,-481.35,0.00029698,5]
[364791004,1749241909155,-1691.35,0.00029698,5]
[364791005,1749241909164,-874.97,0.00029698,5]
[364791006,1749241909173,-208.34,0.000297,2]
[364791007,1749241909183,-1195.24,0.000297,2]
[364791008,1749241909192,-933.4,0.000297,2]
[364791009,1749241909202,-4876.98,0.000297,2]
[364791010,1749241909211,-6069.09,0.000297,2]
[364791011,1749241909220,-463.41,0.000297,2]
[364791012,1749241909230,-150.0,0.000297,7]
[364791013,1749241909240,-150.0,0.00029712,7]
[364791014,1749241909249,-255.59327405,0.0002972,7]
[364791015,1749241909259,-326.78703344,0.0002972,7]
[364791016,1749241909269,-150.0,0.00029724,7]
[364791017,1749241909278,-155.6039419,0.00029726,30]
[364791018,1749241909288,-155.6039419,0.00029726,30]
[364791019,1749241909298,-1000.0,0.00029732,2]
[364791020,1749241909307,-150.0,0.00029734,7]
[364791021,1749241909317,-150.0,0.00029739,7]
[364791022,1749241909327,-150.0,0.00029748,7]
[364791023,1749241909337,-255.59327405,0.00029752,7]
[364791024,1749241909347,-326.78703344,0.00029752,7]
[364791025,1749241909356,-150.0,0.00029763,7]
[364791026,1749241909366,-150.0,0.00029777,7]
[364791027,1749241909376,-150.0,0.00029779,7]
[364791028,1749241909385,-255.59327405,0.00029784,7]
[364791029,1749241909395,-150.0,0.00029784,7]
[364791030,1749241909404,-326.78703344,0.00029784,7]
[364791031,1749241909414,-1613.0,0.00029787,2]
[364791032,1749241909423,-208.34,0.000298,2]
[364791033,1749241909433,-1195.24,0.000298,2]
[364791034,1749241909442,-933.4,0.000298,2]
[364791035,1749241909451,-4876.98,0.000298,2]
[364791036,1749241909461,-6069.09,0.000298,2]
[364791037,1749241909470,-463.41,0.000298,2]
[364791039,1749241909479,-210.0,0.000298,2]
[364791040,1749241909489,-212.0,0.000298,30]
[364791041,1749241909499,-207.0,0.000298,2]
[364791042,1749241909508,-150.0,0.00029803,7]
[364791043,1749241909517,-150.0,0.00029815,7]
[364791044,1749241909527,-255.59327405,0.00029816,7]
[364791045,1749241909536,-326.78703344,0.00029816,7]
[364791046,1749241909546,-150.0,0.0002982,7]
[364791047,1749241909556,-150.0,0.0002982,7]
[364791048,1749241909565,-150.0,0.0002982,7]
[364791049,1749241909575,-150.0,0.00029834,7]
[364791050,1749241909585,-255.59327405,0.00029848,7]
[364791051,1749241909595,-326.78703344,0.00029848,7]
[364791052,1749241909605,-150.0,0.00029854,7]
[364791053,1749241909615,-150.0,0.00029856,7]
[364791054,1749241909624,-480.0,0.00029863,5]
[364791055,1749241909633,-480.0,0.00029863,5]
[364791056,1749241909642,-480.0,0.00029863,5]
[364791057,1749241909651,-480.0,0.00029863,5]
[364791058,1749241909660,-290.50987742,0.00029863,5]
[364791059,1749241909669,-480.0,0.00029863,5]
[364791060,1749241909679,-292.83485633,0.00029863,5]
[364791061,1749241909689,-1150.67,0.00029863,5]
[364791062,1749241909699,-849.58,0.00029863,5]
[364791063,1749241909708,-1762.69,0.00029863,5]
[364791064,1749241909717,-521.79,0.00029863,5]
[364791065,1749241909727,-480.0,0.00029863,5]
[364791066,1749241909737,-480.0,0.00029863,5]
[364791067,1749241909748,-1155.6,0.00029863,5]
[364791068,1749241909758,-480.0,0.00029863,5]
[364791069,1749241909768,-1160.86,0.00029863,5]
[364791070,1749241909777,-519.58,0.00029863,5]
[364791071,1749241909788,-552.94,0.00029863,5]
[364791072,1749241909798,-950.71,0.00029863,5]
[364791073,1749241909808,-675.25,0.00029863,5]
[364791074,1749241909818,-885.57,0.00029863,5]
[364791075,1749241909827,-666.72,0.00029863,5]
[364791076,1749241909840,-1073.7,0.00029863,5]
[364791077,1749241909850,-519.6,0.00029863,5]
[364791078,1749241909859,-511.45,0.00029863,5]
[364791079,1749241909870,-499.44,0.00029863,5]
[364791080,1749241909880,-803.55,0.00029863,5]
[364791081,1749241909889,-579.61,0.00029863,5]
[364791082,1749241909899,-883.54,0.00029863,5]
[364791083,1749241909909,-838.95,0.00029863,5]
[364791084,1749241909918,-607.44,0.00029863,5]
[364791085,1749241909928,-480.0,0.00029863,5]
[364791086,1749241909937,-732.08,0.00029863,5]
[364791087,1749241909947,-646.34,0.00029863,5]
[364791088,1749241909957,-480.0,0.00029863,5]
[364791089,1749241909967,-574.86,0.00029863,5]
[364791090,1749241909976,-518.75,0.00029863,5]
[364791091,1749241909985,-951.19,0.00029863,5]
[364791092,1749241909994,-779.94,0.00029863,5]
[364791093,1749241910004,-689.83,0.00029863,5]
[364791094,1749241910013,-1012.85,0.00029863,5]
[364791095,1749241910022,-482.38,0.00029863,5]
[364791096,1749241910031,-713.99,0.00029863,5]
[364791097,1749241910040,-480.0,0.00029863,5]
[364791098,1749241910050,-549.54,0.00029863,5]
[364791099,1749241910059,-891.22,0.00029863,5]
[364791100,1749241910068,-1010.55,0.00029863,5]
[364791101,1749241910078,-480.0,0.00029863,5]
[364791102,1749241910087,-580.5,0.00029863,5]
[364791103,1749241910097,-480.0,0.00029863,5]
[364791104,1749241910107,-480.0,0.00029863,5]
[364791105,1749241910116,-787.11,0.00029863,5]
[364791106,1749241910125,-801.53,0.00029863,5]
[364791107,1749241910134,-547.92,0.00029863,5]
[364791108,1749241910143,-788.62,0.00029863,5]
[364791109,1749241910153,-823.95,0.00029863,5]
[364791110,1749241910162,-540.55,0.00029863,5]
[364791111,1749241910172,-1667.28,0.00029863,5]
[364791112,1749241910181,-708.27,0.00029863,5]
[364791113,1749241910191,-815.35,0.00029863,5]
[364791114,1749241910200,-1322.04,0.00029863,5]
[364791115,1749241910209,-788.51,0.00029863,5]
[364791116,1749241910219,-480.0,0.00029863,5]
[364791117,1749241910229,-1588.19,0.00029863,5]
[364791118,1749241910239,-894.23,0.00029863,5]
[364791119,1749241910248,-627.73,0.00029863,5]
[364791120,1749241910257,-493.66,0.00029863,5]
[364791121,1749241910267,-907.31,0.00029863,5]
[364791122,1749241910276,-543.94,0.00029863,5]
[364791123,1749241910285,-907.9,0.00029863,5]
[364791124,1749241910295,-612.39,0.00029863,5]
[364791125,1749241910303,-908.3,0.00029863,5]
[364791126,1749241910313,-480.0,0.00029863,5]
[364791127,1749241910322,-3267.11,0.00029863,5]
[364791128,1749241910331,-778.17,0.00029863,5]
[364791129,1749241910340,-948.36,0.00029863,5]
[364791130,1749241910350,-1438.85,0.00029863,5]
[364791131,1749241910361,-542.99,0.00029863,5]
[364791132,1749241910371,-555.32,0.00029863,5]
[364791133,1749241910381,-1535.87,0.00029863,5]
[364791134,1749241910393,-1296.25,0.00029863,5]
[364791135,1749241910404,-516.58,0.00029863,5]
[364791136,1749241910413,-1575.78,0.00029863,5]
[364791137,1749241910422,-538.08,0.00029863,5]
[364791138,1749241910432,-970.72,0.00029863,5]
[364791139,1749241910442,-2734.62,0.00029863,5]
[364791140,1749241910451,-1837.71,0.00029863,5]
[364791141,1749241910460,-480.0,0.00029863,5]
[364791142,1749241910470,-2758.24,0.00029863,5]
[364791143,1749241910481,-4609.26,0.00029863,5]
[364791144,1749241910492,-398.1559007,0.00029863,5]
[364791145,1749241910501,-819.99,0.00029863,5]
[364791146,1749241910510,-1046.07,0.00029863,5]
[364791147,1749241910519,-480.0,0.00029863,5]
[364791148,1749241910528,-3979.76,0.00029863,5]
[364791149,1749241910537,-902.21,0.00029863,5]
[364791150,1749241910546,-480.0,0.00029863,5]
[364791151,1749241910555,-480.0,0.00029863,5]
[364791152,1749241910564,-599.88,0.00029863,5]
[364791153,1749241910574,-765.24,0.00029863,5]
[364791154,1749241910583,-57460.09,0.00029863,5]
[364791155,1749241910593,-703.27,0.00029863,5]
[364791156,1749241910603,-4676.37,0.00029863,5]
[364791157,1749241910611,-2938.32,0.00029863,5]
[364791158,1749241910620,-1379.45,0.00029863,5]
[364791159,1749241910629,-7478.95,0.00029863,5]
[364791160,1749241910640,-755.4,0.00029863,5]
[364791161,1749241910651,-607.62,0.00029863,5]
[364791162,1749241910659,-1091.95,0.00029863,5]
[364791163,1749241910668,-3373.75,0.00029863,5]
[364791164,1749241910677,-1260.18,0.00029863,5]
[364791165,1749241910686,-949.92,0.00029863,5]
[364791166,1749241910696,-9118.0,0.00029863,5]
[364791167,1749241910705,-520.51,0.00029863,5]
[364791168,1749241910714,-480.0,0.00029863,5]
[364791169,1749241910724,-597.4,0.00029863,5]
[364791170,1749241910733,-1500.48,0.00029863,5]
[364791171,1749241910743,-1073.19,0.00029863,5]
[364791172,1749241910751,-2617.35,0.00029863,5]
[364791173,1749241910760,-1091.83,0.00029863,5]
[364791174,1749241910770,-1000.0,0.00029863,2]
[364791175,1749241910781,-480.0,0.00029863,5]
[364791176,1749241910794,-2954.48,0.00029863,5]
[364791177,1749241910805,-676.46,0.00029863,5]
[364791178,1749241910815,-1100.1,0.00029863,5]
[364791179,1749241910824,-774.3,0.00029863,5]
[364791180,1749241910834,-909.08,0.00029863,5]
[364791181,1749241910844,-771.25,0.00029863,5]
[364791182,1749241910853,-1341.13,0.00029863,5]
[364791183,1749241910863,-1674.49,0.00029863,5]
[364791184,1749241910873,-2363.43,0.00029863,5]
[364791185,1749241910882,-1778.5,0.00029863,5]
[364791186,1749241910891,-2094.52,0.00029863,5]
[364791187,1749241910901,-2998.55,0.00029863,5]
[364791188,1749241910911,-837.35,0.00029863,5]
[364791189,1749241910920,-1324.98,0.00029863,5]
[364791190,1749241910930,-822.69,0.00029863,5]
[364791191,1749241910939,-4354.28,0.00029863,5]
[364791192,1749241910949,-1172.56,0.00029863,5]
[364791193,1749241910958,-10833.54,0.00029863,5]
[364791194,1749241910967,-2910.79,0.00029863,5]
[364791195,1749241910976,-1425.98,0.00029863,5]
[364791196,1749241910986,-1161.29,0.00029863,5]
[364791197,1749241910995,-701.08,0.00029863,5]
[364791198,1749241911004,-480.0,0.00029863,5]
[364791199,1749241911014,-725.11,0.00029863,5]
[364791200,1749241911023,-622.3,0.00029863,5]
[364791201,1749241911031,-891.78,0.00029863,5]
[364791202,1749241911041,-480.0,0.00029863,5]
[364791203,1749241911050,-1363.03,0.00029863,5]
[364791204,1749241911059,-2822.75,0.00029863,5]
[364791205,1749241911068,-3135.14,0.00029863,5]
[364791206,1749241911077,-1180.93,0.00029863,5]
[364791207,1749241911086,-931.09,0.00029863,5]
[364791208,1749241911096,-480.0,0.00029863,5]
[364791209,1749241911105,-1414.51,0.00029863,5]
[364791210,1749241911114,-1155.88,0.00029863,5]
[364791211,1749241911123,-4001.96,0.00029863,5]
[364791212,1749241911132,-552.73,0.00029863,5]
[364791213,1749241911141,-632.88,0.00029863,5]
[364791214,1749241911150,-1526.89,0.00029863,5]
[364791215,1749241911159,-1010.46,0.00029863,5]
[364791216,1749241911168,-1132.61,0.00029863,5]
[364791217,1749241911178,-533.37,0.00029863,5]
[364791218,1749241911188,-1110.02,0.00029863,5]
[364791219,1749241911197,-4560.52,0.00029863,5]
[364791220,1749241911206,-480.0,0.00029863,5]
[364791221,1749241911216,-593.39,0.00029863,5]
[364791222,1749241911226,-1741.06,0.00029863,5]
[364791223,1749241911235,-413.79125932,0.00029863,5]
[364791224,1749241911244,-480.0,0.00029863,5]
[364791225,1749241911254,-1207.6,0.00029863,5]
[364791226,1749241911263,-480.0,0.00029863,5]
[364791227,1749241911272,-526.84,0.00029863,5]
[364791228,1749241911281,-625.4,0.00029863,5]
[364791229,1749241911291,-776.39,0.00029863,5]
[364791230,1749241911300,-1627.41,0.00029863,5]
[364791231,1749241911309,-959.5,0.00029863,5]
[364791232,1749241911318,-3166.58,0.00029863,5]
[364791233,1749241911328,-480.0,0.00029863,5]
[364791234,1749241911337,-1176.26,0.00029863,5]
[364791235,1749241911348,-1451.66,0.00029863,5]
[364791236,1749241911357,-480.0,0.00029863,5]
[364791237,1749241911367,-7319.26,0.00029863,5]
[364791238,1749241911377,-15228.1,0.00029863,5]
[364791239,1749241911387,-480.0,0.00029863,5]
[364791240,1749241911396,-3041.7,0.00029863,5]
[364791241,1749241911406,-649.3,0.00029863,5]
[364791242,1749241911415,-480.0,0.00029863,5]
[364791243,1749241911425,-585.28,0.00029863,5]
[364791244,1749241911434,-11478.06,0.00029863,5]
[364791245,1749241911443,-1727.03,0.00029863,5]
[364791246,1749241911452,-1130.77,0.00029863,5]
[364791247,1749241911461,-7297.24,0.00029863,5]
[364791248,1749241911470,-480.0,0.00029863,5]
[364791249,1749241911479,-1673.57,0.00029863,5]
[364791250,1749241911488,-1724.44,0.00029863,5]
[364791251,1749241911497,-605.57,0.00029863,5]
[364791252,1749241911508,-2022.54,0.00029863,5]
[364791253,1749241911518,-1496.76,0.00029863,5]
[364791254,1749241911527,-616.43,0.00029863,5]
[364791255,1749241911536,-480.0,0.00029863,5]
[364791256,1749241911546,-1644.54,0.00029863,5]
[364791257,1749241911555,-3349.68,0.00029863,5]
[364791258,1749241911564,-624.52,0.00029863,5]
[364791259,1749241911573,-584.83,0.00029863,5]
[364791260,1749241911582,-1651.89,0.00029863,5]
[364791261,1749241911592,-869.35,0.00029863,5]
[364791262,1749241911601,-567.05,0.00029863,5]
[364791263,1749241911611,-718.31,0.00029863,5]
[364791264,1749241911620,-593.22,0.00029863,5]
[364791265,1749241911630,-724.33,0.00029863,5]
[364791266,1749241911639,-1529.35,0.00029863,5]
[364791267,1749241911647,-586.21,0.00029863,5]
[364791268,1749241911656,-618.5,0.00029863,5]
[364791269,1749241911665,-645.12,0.00029863,5]
[364791270,1749241911674,-1029.88,0.00029863,5]
[364791271,1749241911683,-856.04,0.00029863,5]
[364791272,1749241911692,-1316.83,0.00029863,5]
[364791273,1749241911701,-1219.25,0.00029863,5]
[364791274,1749241911710,-937.26,0.00029863,5]
[364791275,1749241911719,-2376.4,0.00029863,5]
[364791276,1749241911728,-480.0,0.00029863,2]
[364791277,1749241911738,-481.35,0.00029863,5]
[364791278,1749241911747,-1691.35,0.00029863,5]
[364791279,1749241911756,-874.97,0.00029863,5]
[364791280,1749241911765,-500.0,0.0002987,2]
[364791281,1749241911775,-500.0,0.0002987,2]
[364791282,1749241911960,-150.0,0.00029872,7]
[364791283,1749241911970,-150.0,0.00029877,7]
[364791284,1749241911980,-255.59327405,0.0002988,7]
[364791285,1749241911990,-326.78703344,0.0002988,7]
[364791286,1749241912000,-150.0,0.00029889,7]
[364791287,1749241912009,-150.0,0.00029892,7]
[364791288,1749241912019,-150.0,0.00029892,7]
[364791289,1749241912029,-76242.51736996,0.000299,2]
[364791290,1749241912039,-150.0,0.000299,7]
[364791291,1749241912048,-208.34,0.000299,2]
[364791292,1749241912058,-1195.24,0.000299,2]
[364791293,1749241912067,-933.4,0.000299,2]
[364791294,1749241912076,-4876.98,0.000299,2]
[364791295,1749241912086,-6069.09,0.000299,2]
[364791296,1749241912096,-463.41,0.000299,2]
[364791297,1749241912106,-650.45577193,0.000299,2]
[364791298,1749241912115,-900.0,0.000299,10]
[364791299,1749241912124,-400.0,0.000299,10]
[364791300,1749241912134,-255.59327405,0.00029912,7]
[364791301,1749241912143,-326.78703344,0.00029912,7]
[364791302,1749241912152,-155.6039419,0.00029918,30]
[364791303,1749241912162,-155.6039419,0.00029918,30]
[364791304,1749241912171,-833.32850399,0.00029927,2]
[364791305,1749241912181,-150.0,0.00029928,7]
[364791306,1749241912190,-150.0,0.0002993,7]
[364791307,1749241912200,-150.0,0.00029941,7]
[364791308,1749241912210,-150.0,0.00029943,7]
[364791309,1749241912220,-255.59327405,0.00029945,7]
[364791310,1749241912230,-326.78703344,0.00029945,7]
[364791311,1749241912239,-150.0,0.00029965,7]